Cogmind - Beta 17 @@@ ROGUE MODE // 2026.07.26 @ 19:35:47 Player: Suffixing Result: Escaped! Performance ------------- Evolutions (9) 4500 Regions Visited (28) 5600 Robots Destroyed (193) 965 Value Destroyed (7237) 7237 Prototype IDs (54) 1080 Alien Tech Used (1) 200 Bonus (9456) 9456 TOTAL SCORE: 29038 Bonus ------- High Alert Combat Kills 68 Follower Combat Kills 934 Awakened Behemoth Slayer 1000 Entered Garrisons 200 Network Hubs Disabled 400 Aligned with FarCom 300 Met Imprinter 300 Met Zhirov 300 Built Enhanced Grunts 300 A7 Reached Mainframe 300 Met R17 at Cetus 500 Met R17 at Research 2000 Win 3000 Friendly Fire -146 Cogmind --------- Core Integrity 404/1600 Matter 177/300 Energy 99/100 System Corruption 8% Temperature Cool (0) Movement Core (50) Location To Epsilon Eridani Parts ------- > --- POWER (2) -------- (None) > --- PROPULSION (8) --- (None) > --- UTILITY (11) ----- (None) > --- WEAPON (4) ------- (None) > --- INVENTORY (5) ---- Myomer Leg Gamma Bomb Array Peak State ------------ > --- POWER ------------ Quantum Reactor > --- PROPULSION ------- Cooled Airjet Combat Airjet Combat Airjet Cooled Gravmag System Combat Gravmag System Improved Gyrokinetic Inverter > --- UTILITY ---------- Large Storage Unit Launcher Guidance Computer Launcher Loader Centrium Medium Armor Plating Graphene Brace Hacking Suite Advanced Hacking Suite > --- WEAPON ----------- EMDS CR-A16's Behemoth Slayer > --- INVENTORY -------- Neutrino Core Hybrid Antimatter Reactor Particle Reactor Cooled Gravmag System Improved Gyrokinetic Inverter Improved Gyrokinetic Inverter Transmission Jammer Centrium Medium Armor Plating Powered Armor Authchip [Device] Transdimensional Reconstructor Heavy Shock Bomb Launcher Improved Plasma Cutter [Rating: 121] Favorites ----------- Power Improved Deuterium Engine Engine Improved Deuterium Engine Power Core Neutrino Core Reactor Antimatter Reactor Propulsion Light Treads Treads Light Treads Leg Aluminum Leg Hover Unit Combat Airjet Flight Unit Flying Fortress v7 Utility Hacking Suite Device Structural Scanner Storage Large Storage Unit Processor Spectral Analyzer Hackware Hacking Suite Protection Improved Medium Armor Plating Weapon Enhanced Autogun Energy Gun Beam Rifle Energy Cannon Advanced Beam Cannon Ballistic Gun Enhanced Autogun Ballistic Cannon Mini Assault Cannon Launcher Long-range Missile Launcher Special Weapon Improved Plasma Cutter Impact Weapon Power Maul Slashing Weapon Katana Piercing Weapon Heavy Pick Build | -11 -10 -10 -10 -9 -8 -7 -7 -7 -7 -6 -6 -6 -6 -5 -5 -5 -5 -5 -4 -4 -4 -4 -4 -4 -4 -3 -2 -1 ------- Run | Yrd Mat Min Exi Min Mat Fac Was Fac Sto Fac Low Low Zio Pro Fac Upp Upp Zhi Pro Fac Ext Cet Arc Hub Gar Res Res Acc Slots Evolved 18 | . . . . . 4 2 . . . 2 . . . . 2 . . . . 2 . . . . . 2 2 2 Power 1 | . . . . . . . . . . . . . . . 1 . . . . . . . . . . . . . Propulsion 6 | . . . . . 2 . . . . 1 . . . . 1 . . . . . . . . . . . 1 1 Utility 9 | . . . . . 2 2 . . . 1 . . . . . . . . . 1 . . . . . 1 1 1 Weapon 2 | . . . . . . . . . . . . . . . . . . . . 1 . . . . . 1 . . Parts Attached 141 | 3 7 5 . 1 22 11 . 5 . 15 . . 5 . 8 2 1 3 2 8 9 1 1 7 . 16 7 2 Power 15 | . 1 1 . . 2 . . 2 . . . . . . 1 1 . . . 2 . . 1 1 . 1 1 1 Engine 6 | . 1 1 . . 2 . . 1 . . . . . . 1 . . . . . . . . . . . . . Core 2 | . . . . . . . . . . . . . . . . 1 . . . . . . . . . . . 1 Reactor 7 | . . . . . . . . 1 . . . . . . . . . . . 2 . . 1 1 . 1 1 . Propulsion 33 | 2 . 2 . . 8 1 . . . 6 . . . . 1 . . . 2 1 5 . . . . 3 2 . Treads 11 | 2 . 2 . . 7 . . . . . . . . . . . . . . . . . . . . . . . Leg . | . . . . . . . . . . . . . . . . . . . . . . . . . . . . . Wheel . | . . . . . . . . . . . . . . . . . . . . . . . . . . . . . Hover 21 | . . . . . 1 . . . . 6 . . . . 1 . . . 2 1 5 . . . . 3 2 . Flight 1 | . . . . . . 1 . . . . . . . . . . . . . . . . . . . . . . Utility 50 | . 2 . . 1 5 7 . 2 . 5 . . 5 . 5 . 1 2 . 4 1 1 . 3 . 5 1 . Device 14 | . 1 . . 1 1 1 . . . 1 . . . . 2 . . . . 2 . . . 2 . 2 1 . Storage 5 | . 1 . . . . 2 . . . . . . . . 1 . . . . . . . . . . 1 . . Processor 12 | . . . . . 2 . . . . 1 . . 5 . 2 . . . . . . . . . . 2 . . Hackware 9 | . . . . . . 4 . 1 . 1 . . . . . . . 1 . 2 . . . . . . . . Protection 10 | . . . . . 2 . . 1 . 2 . . . . . . 1 1 . . 1 1 . 1 . . . . Artifact . | . . . . . . . . . . . . . . . . . . . . . . . . . . . . . Weapon 43 | 1 4 2 . . 7 3 . 1 . 4 . . . . 1 1 . 1 . 1 3 . . 3 . 7 3 1 Energy Gun 10 | . 2 2 . . 2 . . . . . . . . . . . . . . . . . . . . 4 . . Energy Cannon 7 | . . . . . 2 . . 1 . 1 . . . . . . . . . . . . . 1 . . 2 . Ballistic Gun 6 | 1 2 . . . 3 . . . . . . . . . . . . . . . . . . . . . . . Ballistic Cannon 2 | . . . . . . . . . . 1 . . . . . . . . . . 1 . . . . . . . Launcher 11 | . . . . . . 1 . . . 1 . . . . 1 1 . . . 1 2 . . . . 2 1 1 Special Weapon 1 | . . . . . . . . . . . . . . . . . . . . . . . . 1 . . . . Impact Weapon 1 | . . . . . . 1 . . . . . . . . . . . . . . . . . . . . . . Slashing Weapon 1 | . . . . . . 1 . . . . . . . . . . . . . . . . . . . . . . Piercing Weapon 4 | . . . . . . . . . . 1 . . . . . . . 1 . . . . . 1 . 1 . . Special Melee Weapon . | . . . . . . . . . . . . . . . . . . . . . . . . . . . . . Unidentified Prototypes 23 | . . . . . 4 . . . . 4 . . 5 . 1 . . 1 . 1 . 1 . 2 . 3 1 . Corrupted Parts 1 | . . . . . . . . . . . . . . . . . . . . . . . 1 . . . . . System Corruption 2 | . . . . . . . . . . . . . . . . . . . . . . . 2 . . . . . Parts Lost 49 | . 1 5 . 1 1 . . . 1 1 . . . 1 2 3 1 . 2 4 2 . 1 3 5 . 11 4 Power 8 | . 1 1 . . . . . . . . . . . . . 1 . . . 2 . . . . . . 2 1 Propulsion 16 | . . 2 . . 1 . . . . . . . . . . 1 . . . 1 1 . . 1 4 . 4 1 Utility 12 | . . . . 1 . . . . . 1 . . . 1 1 1 1 . 2 . . . . 1 1 . 2 . Weapon 13 | . . 2 . . . . . . 1 . . . . . 1 . . . . 1 1 . 1 1 . . 3 2 Highest Loss Streak 7 | . 1 5 . 1 1 . . . 1 1 . . . 1 2 1 1 . 1 3 1 . 1 3 5 . 7 2 To Critical Strikes . | . . . . . . . . . . . . . . . . . . . . . . . . . . . . . Average Backups 14 | 4 12 11 11 11 20 12 14 14 15 11 13 14 14 15 13 14 14 15 15 14 13 14 14 14 12 4 4 3 Power 2 | 1 2 2 2 2 3 2 2 3 3 3 3 4 4 4 3 3 4 4 3 2 1 1 2 3 2 . . . Propulsion 4 | 2 6 5 5 6 7 2 5 5 6 1 2 2 2 2 1 1 1 1 3 3 3 3 3 3 2 . 1 1 Utility 3 | . 2 4 4 3 4 5 4 3 3 2 3 3 4 4 3 3 3 2 2 2 2 4 5 4 4 1 . . Weapon 3 | . 1 . . . 5 1 2 1 2 3 4 4 3 4 4 5 5 5 4 3 4 3 2 2 1 . 1 1 Tool/Special . | . . . . . . . . . . . . . . . . . . . . . . . . . . . . . Unused Backups 47 | . 4 . . . 16 6 1 2 1 1 . . 1 . 2 . . 1 2 . 1 3 . . 3 2 . 1 Power 15 | . . . . . 8 . 1 . . . . . . . 1 . . 1 2 . 1 . . . 1 . . . Propulsion 10 | . . . . . 4 4 . 1 . . . . . . . . . . . . . . . . . . . 1 Utility 8 | . . . . . 2 1 . 1 1 . . . . . . . . . . . . . . . 1 2 . . Weapon 12 | . 4 . . . 2 1 . . . 1 . . 1 . . . . . . . . 3 . . . . . . Tool/Special 2 | . . . . . . . . . . . . . . . 1 . . . . . . . . . 1 . . . Average Slot Usage (%) 87 | . 95 98 100 99 95 75 76 74 71 96 100 100 99 96 98 93 91 89 92 80 86 78 77 73 42 46 48 21 Engine 6 | . 13 13 14 14 9 7 7 7 7 6 6 6 6 6 10 3 . . . . . . . . . . . . Reactor 1 | . . . . . . . . . . . . . . . . 3 5 5 5 6 4 . 3 4 3 3 2 . Treads 12 | . 28 26 28 28 35 . . . . . . . . . . . . . . . . . . . . . . . Hover 14 | . . . . . . . . . . 32 33 33 33 33 35 35 35 35 35 29 31 31 31 30 16 15 15 5 Device 7 | . 9 14 14 13 9 6 7 5 7 7 6 6 5 2 6 11 9 3 . 3 9 5 5 6 . 3 4 2 Storage 7 | . 14 14 14 14 9 7 7 7 7 6 6 6 6 6 5 5 5 5 5 5 5 5 5 5 3 1 4 2 Processor 5 | . . . . . 6 7 7 7 7 4 6 6 5 6 7 11 11 11 11 10 10 10 10 6 3 7 8 5 Hackware 6 | . . . . . . 20 23 20 15 13 13 13 13 13 9 5 5 6 11 11 10 10 10 10 7 . . . Protection 4 | . . . . . 6 1 . 2 7 10 13 13 13 13 8 2 4 6 9 . . 5 5 5 2 . . . Energy Gun 5 | . 19 27 28 28 . . . . . . . . . . . . . . . . . . . . . 8 . . Ballistic Gun 3 | . 8 . . . 16 . . . . . . . . . . . . . . . . . . . . . . . Launcher 2 | . . . . . . 6 7 6 2 1 6 6 6 6 3 5 5 5 2 3 5 5 4 2 . 1 5 1 Piercing Weapon 2 | . . . . . . . . . . 4 6 6 6 6 5 5 5 5 7 7 3 . . . 2 3 3 . Peak Build Rating 121 | 6 13 13 16 16 33 66 64 67 66 68 66 67 81 73 88 87 83 87 90 108 109 100 102 121 76 99 117 72 Average Rating 55 | 6 10 12 13 14 30 61 63 64 63 63 66 66 71 72 82 82 81 81 88 96 103 98 100 93 50 75 90 44 On Entrance 59 | 6 6 13 12 16 15 33 64 64 66 62 66 66 67 73 72 84 79 79 87 86 108 93 100 102 68 3 91 58 Avg Prop Armor Cover (%) 3 | . . . . . . . . . . . . . . . . . . . 3 . . . . . . . . . Naked Turns 143 | . . . . . . . . . . . . . . . . . . . . . . . . . 22 12 . 109 Heaviest Build 105 | 10 95 95 95 95 105 44 41 48 48 50 50 50 50 50 60 61 54 52 52 73 80 65 68 73 41 35 52 23 Greatest Support 80 | 40 40 40 40 40 80 50 50 50 50 53 51 51 51 51 76 72 68 68 69 75 76 71 71 71 60 60 69 26 Greatest Overweight (x) 2 | . 2 2 2 2 1 . . . . . . . . . . . . . . . 1 . . 1 . 1 1 . Average Overweight (x) . | . 1 2 2 2 1 . . . . . . . . . . . . . . . . . . . . . . . Largest Inventory Capacity 25 | 8 25 25 25 25 25 25 15 15 15 15 15 15 15 15 15 15 15 15 15 15 15 15 15 15 15 5 5 5 Average Capacity 17 | 8 22 25 25 25 25 15 15 15 15 15 15 15 15 15 15 15 15 15 15 15 15 15 15 15 12 5 5 5 Most Carried 25 | 6 18 16 15 15 25 25 15 15 15 15 14 15 15 15 15 15 15 15 15 15 15 15 15 15 15 5 5 5 Average Carried 14 | 3 12 11 12 14 23 12 14 14 15 11 13 14 14 15 13 14 14 14 14 14 13 14 14 14 11 4 4 3 Final Capacity 25 | 8 25 25 25 25 25 15 15 15 15 15 15 15 15 15 15 15 15 15 15 15 15 15 15 15 5 5 5 5 Final Carried 25 | 2 16 11 15 14 25 15 15 15 15 13 14 15 15 15 14 14 15 15 15 14 14 15 15 15 5 5 5 2 Class Distribution -------------------- 44% | Hacker-Mutant 29% | Mutant 15% | Scavenger-Mutant 4% | Machinist-Mutant 3% | Commander-Mutant Dominant Class ---------------- Mutant | -10/Materials Mutant | -10/Mines Mutant | -10/Exiles Mutant | -9/Mines Scavenger-Mutant | -8/Materials Hacker-Mutant | -7/Factory Hacker-Mutant | -7/Waste Hacker-Mutant | -7/Factory Hacker-Mutant | -7/Storage Hacker-Mutant | -6/Factory Hacker-Mutant | -6/Lower Caves Hacker-Mutant | -6/Lower Caves Hacker-Mutant | -6/Zion Hacker-Mutant | -5/Proximity Caves Hacker-Mutant | -5/Factory Machinist-Mutant | -5/Upper Caves Machinist-Mutant | -5/Upper Caves Machinist-Mutant | -5/Zhirov Hacker-Mutant | -4/Proximity Caves Hacker-Mutant | -4/Factory Hacker-Mutant | -4/Extension Commander-Mutant | -4/Cetus Commander-Mutant | -4/Archives Hacker-Mutant | -4/Hub_04(d) Hacker-Mutant | -4/Garrison Scout | -3/Research Skirmisher | -2/Research Mutant | -1/Access Resources | -11 -10 -10 -10 -9 -8 -7 -7 -7 -7 -6 -6 -6 -6 -5 -5 -5 -5 -5 -4 -4 -4 -4 -4 -4 -4 -3 -2 -1 ----------- Run | Yrd Mat Min Exi Min Mat Fac Was Fac Sto Fac Low Low Zio Pro Fac Upp Upp Zhi Pro Fac Ext Cet Arc Hub Gar Res Res Acc Matter Collected 4683 | 223 212 40 . 10 575 87 . 23 261 230 50 72 47 8 147 223 356 . 293 85 647 162 69 188 . 585 75 15 Remotely . | . . . . . . . . . . . . . . . . . . . . . . . . . . . . . Salvage Created 7003 | . 618 61 . 56 1377 243 324 30 . 544 27 . . 5 288 223 172 110 294 199 699 619 . . 110 627 186 191 Parts 361 | . 38 . . 2 84 13 4 2 . 29 2 . . . 22 6 4 3 12 21 26 24 . . 4 27 17 21 Haulers Intercepted 10 | . 2 . . . 4 1 . . . 1 . . . . . . . . . . 1 . . . . 1 . . Recyclers Shooed 7 | . 1 . . . 1 . . . . . . . . . . . . . . . 1 . . . . 1 2 1 Parts Field Recycled . | . . . . . . . . . . . . . . . . . . . . . . . . . . . . . Retrieved Matter . | . . . . . . . . . . . . . . . . . . . . . . . . . . . . . Parts Self-Destructed 26 | . . . . . . . . . . . 1 6 . . . 6 1 3 9 . . . . . . . . . Prevented . | . . . . . . . . . . . . . . . . . . . . . . . . . . . . . Parts Restored . | . . . . . . . . . . . . . . . . . . . . . . . . . . . . . Kills | -11 -10 -10 -10 -9 -8 -7 -7 -7 -7 -6 -6 -6 -6 -5 -5 -5 -5 -5 -4 -4 -4 -4 -4 -4 -4 -3 -2 -1 ------- Run | Yrd Mat Min Exi Min Mat Fac Was Fac Sto Fac Low Low Zio Pro Fac Upp Upp Zhi Pro Fac Ext Cet Arc Hub Gar Res Res Acc Combat Hostiles Destroyed 132 | . 14 5 . 4 20 4 1 3 . 5 3 . . 1 11 8 5 . 7 8 8 7 . . 1 3 8 6 Melee 9 | . . . . . . . . . . 5 . . . 1 . . 1 . . 2 . . . . . . . . Guns 38 | . 14 5 . 4 15 . . . . . . . . . . . . . . . . . . . . . . . Cannons 9 | . . . . . 5 . . . . . . . . . 1 . . . . . 1 . . . . . 1 1 AOE 65 | . . . . . . 4 1 3 . . 3 . . . 10 8 4 . 6 6 5 1 . . . 3 7 4 Classes Destroyed 21 | . 5 2 . . 5 1 1 . . 2 . . . 1 . 1 1 . 1 . . . . . . . 1 . Worker 14 | . . . . . 2 3 . . . 2 . . . . 1 . . . . . . . . . . 4 2 . Builder 17 | . . . . . 5 . . . . . . . . . 1 . . . . . 4 . . . . 1 2 4 Tunneler 2 | . . . . . . 1 . . . . . . . . . . . . . . . . . . . . . 1 Hauler 10 | . 2 . . . 4 1 . . . 1 . . . . . . . . . . 1 . . . . 1 . . Recycler 9 | . 1 . . . 2 . . . . 1 . . . . . . . . . . 2 . . . . 3 . . Operator 8 | . 2 . . . . 3 . . . . . . . . 1 . . . . 1 . . 1 . . . . . Drone 1 | . . . . . . . . . . . . . . 1 . . . . . . . . . . . . . . Watcher 4 | . . . . . . . . . . 1 . . . . . . . . . . . 2 . . . . 1 . Swarmer 49 | . 6 . . 4 4 4 . 3 . . 3 . . . 5 2 4 . 2 4 . . . . . 3 . 5 Cutter 3 | . . . . . . . . . . . . . . . . . . . . . . . . . . . 3 . Grunt 33 | . 8 . . . 8 . . . . 2 . . . . 5 . . . 4 . 5 . . . . . . 1 Duelist 1 | . . . . . 1 . . . . . . . . . . . . . . . . . . . . . . . Sentry 5 | . . . . . 4 . . . . . . . . . 1 . . . . . . . . . . . . . Demolisher 1 | . . 1 . . . . . . . . . . . . . . . . . . . . . . . . . . Hunter 5 | . . . . . 3 . . . . . . . . . . 2 . . . . . . . . . . . . Programmer 14 | . . . . . . . . . . 3 . . . . . . 1 . . 4 1 . . . . . 5 . Behemoth 4 | . . . . . . . . . . . . . . . . . . . 1 . 2 . . . 1 . . . Compactor 1 | . . . . . . . 1 . . . . . . . . . . . . . . . . . . . . . Cetus Guard 7 | . . . . . . . . . . . . . . . . . . . . . . 7 . . . . . . Decomposer 1 | . . . . . . . . . . . . . . . . . 1 . . . . . . . . . . . Samaritan 2 | . . . . . . . . . . . . . . . . . 2 . . . . . . . . . . . Assembled 4 | . . 4 . . . . . . . . . . . . . . . . . . . . . . . . . . Thug 4 | . . . . . . . . . . . . . . . . 4 . . . . . . . . . . . . Mutant 1 | . . . . . . . . . . . . . . . . 1 . . . . . . . . . . . . Best Kill Streak 10 | . 3 2 . 4 4 8 1 3 . 2 3 . . 1 5 6 4 . 3 4 4 5 1 . 1 7 10 9 Combat Bots Only 6 | . 3 2 . 4 4 4 1 3 . 1 3 . . 1 5 6 4 . 3 4 3 4 . . 1 3 5 5 Max Kills in Single Turn 8 | . 2 1 . 1 1 8 1 2 . 1 2 . . 1 3 2 2 . 3 4 1 1 1 . 1 3 3 3 Gunslinging . | . . . . . . . . . . . . . . . . . . . . . . . . . . . . . Exploded 4 | . . . . . . 4 1 2 . . 2 . . . 3 2 2 . 3 4 1 1 . . . 2 3 3 Melee 1 | . . . . . . . . . . 1 . . . 1 . . 1 . . 1 . . . . . . . . Uniques/NPCs Destroyed . | . . . . . . . . . . . . . . . . . . . . . . . . . . . . . Combat | -11 -10 -10 -10 -9 -8 -7 -7 -7 -7 -6 -6 -6 -6 -5 -5 -5 -5 -5 -4 -4 -4 -4 -4 -4 -4 -3 -2 -1 -------- Run | Yrd Mat Min Exi Min Mat Fac Was Fac Sto Fac Low Low Zio Pro Fac Upp Upp Zhi Pro Fac Ext Cet Arc Hub Gar Res Res Acc Hostile Shots Fired 1021 | . 64 39 . 38 107 21 . 49 9 33 3 3 . 8 47 68 11 . 58 47 56 14 4 28 134 9 60 111 Missed 423 | . 16 6 . 4 31 13 . 35 4 19 1 1 . 4 26 36 5 . 17 19 26 8 1 10 62 6 22 51 Hits 598 | . 48 33 . 34 76 8 . 14 5 14 2 2 . 4 21 32 6 . 41 28 30 6 3 18 72 3 38 60 Melee 2 | . . . . . . . . . . . . . . . . . . . . . . . . . . . 2 . Projectile 596 | . 48 33 . 34 76 8 . 14 5 14 2 2 . 4 21 32 6 . 41 28 30 6 3 18 72 3 36 60 AOE 9 | . . 1 . . . . . . 5 . . . . . 1 . . . . . . . . 1 . . 1 . Critical Strikes 36 | . . 1 . . 8 . . . . . . . . . 2 1 . . 3 3 . 4 . 2 4 . 5 3 Actively Blocked 6 | . . . . . . . . . . . . . . . . . . . . . . . . . . . 5 1 Damage Taken 11321 | . 534 486 . 269 918 122 . 348 217 291 29 45 . 101 577 546 104 . 749 544 813 81 130 534 1126 159 1098 1500 Core 3015 | . 92 117 . 29 138 18 . 11 54 . 15 . . 56 42 43 20 . 187 181 134 . . 48 533 . 101 1196 Absorbed by Shields 303 | . . . . . 144 9 . . . . . . . . . . . . . . . 80 . . 51 . 19 . Redirected to Shielding 433 | . . . . . . . . . . 81 . . . . 189 . . . 163 . . . . . . . . . Regen/Repaired (Parts) 404 | . . . . . . . . . . . . . 404 . . . . . . . . . . . . . . . Core Remaining (%) 66 | 100 . . . 4 74 . . . 88 . . . . 91 . . . . 70 . . . . . 22 100 93 25 Volleys Fired 307 | . 50 15 . 11 84 6 . 5 . . 5 . . . 26 15 4 . 10 7 24 9 3 2 . 3 17 11 Largest 2 | . 2 2 . 2 2 1 . 1 . . 1 . . . 1 1 1 . 1 1 1 1 1 1 . 1 1 1 Hottest 136 | . 112 112 . 112 136 39 . 80 . . 43 . . . 43 43 43 . 43 49 55 46 49 70 . 80 120 120 Shots Fired 466 | . 100 28 . 22 168 6 1 6 . 1 5 . . . 26 15 4 . 10 7 23 8 3 2 . 3 17 11 Gun 276 | . 100 28 . 22 126 . . . . . . . . . . . . . . . . . . . . . . . Cannon 67 | . . . . . 42 . . 3 . . . . . . 11 . . . . . 2 . . 2 . . 2 5 Launcher 123 | . . . . . . 6 1 3 . 1 5 . . . 15 15 4 . 10 7 21 8 3 . . 3 15 6 Special . | . . . . . . . . . . . . . . . . . . . . . . . . . . . . . Kinetic 157 | . 52 . . . 92 . . . . . . . . . 11 . . . . . 2 . . . . . . . Thermal 184 | . 48 28 . 22 76 . . 3 . . . . . . . . . . . . . . . . . . 2 5 Explosive 114 | . . . . . . 6 1 3 . 1 5 . . . 15 15 4 . 10 7 21 . 3 . . 3 15 5 Electromagnetic 11 | . . . . . . . . . . . . . . . . . . . . . . 8 . 2 . . . 1 Robot Hit Streak 13 | . 12 4 . 4 13 12 1 . . . . . . . 3 5 1 . 3 . 3 2 3 . . . 9 1 Robot Miss Streak 5 | . 4 2 . 4 5 1 . . . . . . . . 2 3 4 . 1 2 1 . 1 1 . . 3 3 Penetration Max . | . . . . . . . . . . . . . . . . . . . . . . . . . . . . . Secondary Targets 4 | . . 1 . 2 1 . . . . . . . . . . . . . . . . . . . . . . . Max Gunslinging Chain 1 | . . 1 . 1 1 . . . . . . . . . . . . . . . . . . . . . . . Shots Hit Robots 306 | . 60 17 . 10 108 7 1 . . 16 . . . 1 16 5 8 2 10 6 15 1 2 . 1 8 9 3 Core Hits 317 | . 29 9 . 4 53 9 2 4 . 9 4 . . 1 28 22 12 1 14 16 23 13 6 . . 14 32 12 Critical Kills . | . . . . . . . . . . . . . . . . . . . . . . . . . . . . . Critical Parts Destroyed 1 | . . . . . . 1 . . . . . . . . . . . . . . . . . . . . . . Critical Strikes 14 | . 4 . . 1 2 1 . . . 2 . . . . 1 . . . 1 1 . . . . . 1 . . Burn 7 | . 4 . . 1 2 . . . . . . . . . . . . . . . . . . . . . . . Blast 1 | . . . . . . . . . . . . . . . 1 . . . . . . . . . . . . . Smash 1 | . . . . . . 1 . . . . . . . . . . . . . . . . . . . . . . Impale 5 | . . . . . . . . . . 2 . . . . . . . . 1 1 . . . . . 1 . . Melee Attacks 132 | . . . . . . 20 . 13 3 33 . . . 1 9 . 7 2 6 12 7 . . 3 1 11 4 . Impact 37 | . . . . . . 19 . 13 3 2 . . . . . . . . . . . . . . . . . . Slashing 1 | . . . . . . 1 . . . . . . . . . . . . . . . . . . . . . . Piercing 94 | . . . . . . . . . . 31 . . . 1 9 . 7 2 6 12 7 . . 3 1 11 4 . Sneak Attacks 25 | . . . . . . 1 . . . 6 . . . 1 1 . 5 . . . 5 . . . . 6 . . Combat Hostiles 2 | . . . . . . . . . . 1 . . . 1 . . . . . . . . . . . . . . Follow-up Attacks 2 | . . . . . . . . . . . . . . . . . . . 1 1 . . . . . . . . Damage Inflicted 19817 | . 895 304 . 141 2043 1004 204 217 . 925 277 . . 74 1674 1333 681 132 1046 780 2327 1327 383 . . 1107 1834 1109 Guns 2625 | . 895 291 . 141 1298 . . . . . . . . . . . . . . . . . . . . . . . Cannons 964 | . . . . . 612 . . . . . . . . . 215 . . . . . 41 . . . . . 52 44 Explosions 12905 | . . . . . . 693 204 217 . 57 277 . . . 1375 1333 303 . 900 566 1885 1327 383 . . 563 1782 1040 Melee 3134 | . . . . . . 311 . . . 868 . . . 74 84 . 378 132 146 214 401 . . . . 526 . . Ramming 189 | . . 13 . . 133 . . . . . . . . . . . . . . . . . . . . 18 . 25 Kinetic 1635 | . 482 . . . 897 . . . . . . . . . 215 . . . . . 41 . . . . . . . Thermal 2953 | . 413 291 . 141 1013 291 . . . 57 . . . . 253 . . . . . . 398 . . . . 52 44 Explosive 10736 | . . . . . . 402 204 217 . . 277 . . . 1008 1333 303 . 900 566 1885 . 383 . . 563 1782 913 Electromagnetic 1170 | . . . . . . . . . . . . . . . 114 . . . . . . 929 . . . . . 127 Impact 433 | . . . . . . 311 . . . 122 . . . . . . . . . . . . . . . . . . Slashing . | . . . . . . . . . . . . . . . . . . . . . . . . . . . . . Piercing 2701 | . . . . . . . . . . 746 . . . 74 84 . 378 132 146 214 401 . . . . 526 . . Highest Corruption 9 | . . . . . . . 5 6 6 1 1 1 1 . . . . . . 3 3 3 5 9 9 . . 8 Average Corruption 3 | . . . . . . . 5 5 6 1 1 1 1 . . . . . . 2 3 3 4 5 9 . . 3 Corruption Purged . | . . . . . . . . . . . . . . . . . . . . . . . . . . . . . Corruption Blocked 4 | . . . . . . . . . . . . . . . . . . . . . . . . . . . 4 . Effects 102 | . . . . . . . 2 17 9 11 . 3 2 . . . . . . 6 25 10 3 7 3 . . 4 Message Errors 24 | . . . . . . . 1 5 . 2 . 1 1 . . . . . . 1 6 5 . 1 . . . 1 Matter Fused 25 | . . . . . . . . 3 5 4 . 2 . . . . . . . 1 5 1 1 2 . . . 1 Heat Flow Errors 14 | . . . . . . . . 4 . 2 . . . . . . . . . 1 5 . . 2 . . . . Energy Discharges 8 | . . . . . . . . 2 1 1 . . . . . . . . . 1 2 1 . . . . . . Parts Rejected 1 | . . . . . . . . . . . . . . . . . . . . . . . . . 1 . . . Parts Fused 2 | . . . . . . . . . . . . . . . . . . . . 1 1 . . . . . . . Data Loss (minor) 11 | . . . . . . . . 2 1 1 . . . . . . . . . 1 4 1 . 1 . . . . Data Loss (major) 6 | . . . . . . . . . 2 . . . . . . . . . . . 1 . 1 . . . . 2 Misfires 3 | . . . . . . . 1 1 . 1 . . . . . . . . . . . . . . . . . . Alerts 6 | . . . . . . . . . . . . . 1 . . . . . . . . 1 1 1 2 . . . Weapon Failures 2 | . . . . . . . . . . . . . . . . . . . . . 1 1 . . . . . . Overload Shots . | . . . . . . . . . . . . . . . . . . . . . . . . . . . . . Overflow Damage 1506 | . . . . . 9 233 . . . 276 11 . . . 43 42 97 . 118 39 250 . 66 . . 227 25 70 Projectiles 27 | . . . . . . . . . . . . . . . . . . . . . 27 . . . . . . . Explosions 583 | . . . . . . 34 . . . 27 11 . . . 43 42 6 . 118 . 101 . 66 . . 40 25 70 Melee 896 | . . . . . 9 199 . . . 249 . . . . . . 91 . . 39 122 . . . . 187 . . Knockbacks 2 | . . . . . 1 . . . . . . . . . . . . . . . . . . . . 1 . . Impact 2 | . . . . . 1 . . . . . . . . . . . . . . . . . . . . 1 . . Kinetic . | . . . . . . . . . . . . . . . . . . . . . . . . . . . . . Secondary . | . . . . . . . . . . . . . . . . . . . . . . . . . . . . . Self-Inflicted Damage 560 | . . . . . . . . 168 . . . . . . . 20 . . . 56 71 . . . . 9 127 109 Shots 10 | . . . . . . . . 2 . . . . . . . 2 . . . 1 1 . . . . . 2 2 Rammed 16 | . . 2 . . 8 . . . . . . . . . . . . . . . . . . 1 . 1 . 4 Targets Rammed 17 | . . 2 . . 9 . . . . . . . . . . . . . . . . . . 1 . 1 . 4 Kicked . | . . . . . . . . . . . . . . . . . . . . . . . . . . . . . Crushed 1 | . . . . . 1 . . . . . . . . . . . . . . . . . . . . . . . Highest Temperature 940 | . 5 . . 234 122 24 2 279 . 218 . . . . 12 22 . . 940 110 279 62 77 273 2 66 62 46 Average Temperature 85 | . 2 . . 139 32 18 1 85 . 109 . . . . 3 11 . . 405 36 79 30 41 130 2 32 18 23 Received Heat Transfer 2526 | . 237 . . . 421 30 . 33 36 69 . . . 30 84 153 . . 1154 . 111 . 18 9 69 9 . 63 Effects 15 | . . . . . . . . . . . . . . . . . . . 15 . . . . . . . . . Shutdowns 3 | . . . . . . . . . . . . . . . . . . . 3 . . . . . . . . . Interference 2 | . . . . . . . . . . . . . . . . . . . 2 . . . . . . . . . Matter Decay 1 | . . . . . . . . . . . . . . . . . . . 1 . . . . . . . . . Short Circuit 2 | . . . . . . . . . . . . . . . . . . . 2 . . . . . . . . . Damage (minor) 1 | . . . . . . . . . . . . . . . . . . . 1 . . . . . . . . . Damage (major) 6 | . . . . . . . . . . . . . . . . . . . 6 . . . . . . . . . Siege Activations . | . . . . . . . . . . . . . . . . . . . . . . . . . . . . . Martial Activations . | . . . . . . . . . . . . . . . . . . . . . . . . . . . . . Shielding Activations . | . . . . . . . . . . . . . . . . . . . . . . . . . . . . . Robots Disrupted 1 | . . . . . . . . . . . . . . . . . . . . . . 1 . . . . . . Combat Hostiles 1 | . . . . . . . . . . . . . . . . . . . . . . 1 . . . . . . Robots Corrupted 9 | . . . . . . 2 . . . . . . . . . . . . . . . 6 . . . . . 1 Combat Hostiles 7 | . . . . . . . . . . . . . . . . . . . . . . 6 . . . . . 1 Parts Fried 13 | . . . . . . 6 . . . . . . . . . . . . . . . 6 . . . . . 1 Impact Corruptions 11 | . . . . . 3 6 . . . 2 . . . . . . . . . . . . . . . . . . Robots Melted . | . . . . . . . . . . . . . . . . . . . . . . . . . . . . . Combat Hostiles . | . . . . . . . . . . . . . . . . . . . . . . . . . . . . . Parts Melted 10 | . 4 . . . 6 . . . . . . . . . . . . . . . . . . . . . . . Heat Transferred 5523 | . 1332 740 . 444 2183 200 . . . 50 . . . . 200 . . . . . . 300 . . . . 37 37 Parts Sabotaged . | . . . . . . . . . . . . . . . . . . . . . . . . . . . . . Parts Stolen . | . . . . . . . . . . . . . . . . . . . . . . . . . . . . . Parts Stripped . | . . . . . . . . . . . . . . . . . . . . . . . . . . . . . Power Chain Reactions 2 | . . . . . . . . . . . . . . . . . . . . . . 2 . . . . . . Alert | -11 -10 -10 -10 -9 -8 -7 -7 -7 -7 -6 -6 -6 -6 -5 -5 -5 -5 -5 -4 -4 -4 -4 -4 -4 -4 -3 -2 -1 ------- Run | Yrd Mat Min Exi Min Mat Fac Was Fac Sto Fac Low Low Zio Pro Fac Upp Upp Zhi Pro Fac Ext Cet Arc Hub Gar Res Res Acc Maximum Alert Level 3 | . . . . . . 1 . 1 . 1 . . . . 3 . . . . 1 1 1 1 . . . 1 2 Low Security (%) 82 | 100 100 100 . 100 100 51 100 90 100 76 . . . . 5 . . . . 88 86 65 11 100 100 100 62 32 Level 1 12 | . . . . . . 48 . 9 . 23 . . . . 14 . . . . 11 13 34 88 . . . 37 56 Level 2 3 | . . . . . . . . . . . . . . . 67 . . . . . . . . . . . . 10 Level 3 . | . . . . . . . . . . . . . . . 12 . . . . . . . . . . . . . Level 4 . | . . . . . . . . . . . . . . . . . . . . . . . . . . . . . Level 5 . | . . . . . . . . . . . . . . . . . . . . . . . . . . . . . High Security . | . . . . . . . . . . . . . . . . . . . . . . . . . . . . . Max Security . | . . . . . . . . . . . . . . . . . . . . . . . . . . . . . Peak Influence 731 | . 89 30 . 70 124 298 79 220 151 354 . . . . 731 . . . . 313 298 280 343 169 46 132 366 468 Initial 177 | . . 23 . . . 55 79 16 87 30 . . . . 152 . . . . 8 137 48 83 105 16 33 47 177 Average 99 | . 27 2 . 12 42 129 48 66 75 85 . . . . 547 . . . . 49 125 170 286 66 14 28 157 290 Influence Increases 8192 | . 418 30 . 90 639 438 15 357 292 708 190 105 . 35 1000 120 120 5 210 449 751 382 280 241 90 191 509 527 Destroy 0b10 Robot/C 2780 | . 280 20 . 80 400 80 . 60 80 100 60 . . . 220 80 100 . 140 160 260 160 80 60 20 60 160 120 Destroy 0b10 Robot/NC 335 | . 25 . . . 65 40 . . 5 25 . . . 5 10 . . 5 . 5 40 10 5 . . 45 25 25 Destroy Leader 532 | . 64 10 . 10 108 12 . 10 30 44 10 . . . 30 10 20 . 10 30 40 . . 20 10 12 42 10 Allied During Kill 396 | . . . . . . . . . 58 . . . . . . . . . . . 40 136 85 77 . . . . Trap Triggered on 0b10 20 | . . . . . . . . . . 20 . . . . . . . . . . . . . . . . . . Successful Hack 174 | . 4 . . . 31 60 . 15 12 16 . . . . 14 . . . . . 8 6 . 8 . . . . Select Force Hacks 30 | . 30 . . . . . . . . . . . . . . . . . . . . . . . . . . . Disable Machine 720 | . . . . . 30 165 . 90 15 30 . . . . 210 . . . . 45 30 . 60 30 . . 15 . Destroy Structure 1435 | . . . . . 5 51 15 62 2 38 . . . . 246 . . . . 164 288 70 50 16 . 44 237 147 Advance Influence 150 | . . . . . . . . . . . . . . . 150 . . . . . . . . . . . . . Partial Spotted 150 | . . . . . . . . 15 30 45 . . . . . . . . . 15 15 . . . . 15 . 15 Lose Combat Pursuer 1470 | . 15 . . . . 30 . 105 60 390 120 105 . 30 120 30 . . 60 30 30 . . 30 60 15 30 210 Influence Decreases 7734 | . 357 91 . 90 517 333 218 189 415 535 160 193 184 30 373 405 217 255 196 182 946 260 185 521 53 167 297 365 Entered New Map 1988 | . . 38 . . . 67 148 8 105 39 90 53 184 . 3 235 67 250 . 6 144 38 125 198 7 27 37 119 Time Decay 4551 | . 347 53 . 80 497 266 50 180 120 381 70 140 . 30 350 140 140 5 182 166 460 222 50 133 . 140 143 206 Search Patrol Dispatched 100 | . . . . . . . . . . 100 . . . . . . . . . . . . . . . . . . Lost Part 385 | . 10 . . 10 10 . . . 10 5 . . . . 20 30 10 . 14 10 20 . 10 30 46 . 110 40 Lost Ally 428 | . . . . . 10 . 20 1 180 10 . . . . . . . . . . 40 . . 160 . . 7 . Purge Threat 282 | . . . . . . . . . . . . . . . . . . . . . 282 . . . . . . . Squads Dispatched 57 | . 4 . . . . 7 . 4 3 10 . 1 . . 9 . . . . 3 . . . 2 . 6 5 3 Investigation 12 | . 2 . . . . 2 . 2 . 5 . . . . 1 . . . . . . . . . . . . . Extermination 14 | . . . . . . 2 . 2 . 3 . . . . 3 . . . . 2 . . . . . . 1 1 Reinforcement 24 | . 2 . . . . 3 . . 1 2 . . . . 3 . . . . 1 . . . . . 6 4 2 Assault 3 | . . . . . . . . . . . . 1 . . 2 . . . . . . . . . . . . . Garrison 4 | . . . . . . . . . 2 . . . . . . . . . . . . . . 2 . . . . Intercept . | . . . . . . . . . . . . . . . . . . . . . . . . . . . . . Searches Triggered 1 | . . . . . . . . . . 1 . . . . . . . . . . . . . . . . . . Construction Impeded 5 | . . . . . . 1 . . . 1 . . . . 1 . . . . . . . . . . . 1 1 Haulers Reinforced 3 | . . . . . . . . . . . . . . . 1 . . . . . . . . . . 1 . 1 Active Scanning Responses . | . . . . . . . . . . . . . . . . . . . . . . . . . . . . . Cargo Convoy Interrupts . | . . . . . . . . . . . . . . . . . . . . . . . . . . . . . Stealth | -11 -10 -10 -10 -9 -8 -7 -7 -7 -7 -6 -6 -6 -6 -5 -5 -5 -5 -5 -4 -4 -4 -4 -4 -4 -4 -3 -2 -1 --------- Run | Yrd Mat Min Exi Min Mat Fac Was Fac Sto Fac Low Low Zio Pro Fac Upp Upp Zhi Pro Fac Ext Cet Arc Hub Gar Res Res Acc Distress Signals 26 | . 4 . . . 1 2 . 3 . 6 . . . 1 1 . . . . 2 1 . . . . 2 2 1 Communications Jammed 13 | . . . . . . . . . . . . . . . . . . . . . 13 . . . . . . . Distress Signals 13 | . . . . . . . . . . . . . . . . . . . . . 13 . . . . . . . Times Spotted 361 | . 25 6 . 4 40 13 6 14 15 32 9 5 . 3 33 11 4 . 9 13 17 10 6 15 19 12 17 23 Peak Tracking Total 16 | . 5 5 . 4 6 5 5 6 7 6 8 7 . 2 8 4 1 . 5 5 4 5 1 10 13 5 5 16 Tactical Retreats 56 | . 1 1 . . . 2 . 4 3 15 1 3 . 2 5 1 . . 4 2 2 . . 2 2 1 2 3 Traps | -11 -10 -10 -10 -9 -8 -7 -7 -7 -7 -6 -6 -6 -6 -5 -5 -5 -5 -5 -4 -4 -4 -4 -4 -4 -4 -3 -2 -1 ------- Run | Yrd Mat Min Exi Min Mat Fac Was Fac Sto Fac Low Low Zio Pro Fac Upp Upp Zhi Pro Fac Ext Cet Arc Hub Gar Res Res Acc Traps Triggered 19 | . 1 . . . . 2 . 1 . 3 . . . . 1 . . . . . 1 . . . 3 2 4 1 Indirectly 1 | . . . . . . . . . . . . . . . . . . . . . . . . . . . . 1 Trap Hack Attempts . | . . . . . . . . . . . . . . . . . . . . . . . . . . . . . Triggered . | . . . . . . . . . . . . . . . . . . . . . . . . . . . . . Disarmed 12 | . . . . . . . . 6 6 . . . . . . . . . . . . . . . . . . . Reprogrammed 6 | . . . . . . . . . . 6 . . . . . . . . . . . . . . . . . . Reused 2 | . . . . . . . . . . 2 . . . . . . . . . . . . . . . . . . Traps Extracted . | . . . . . . . . . . . . . . . . . . . . . . . . . . . . . Installed . | . . . . . . . . . . . . . . . . . . . . . . . . . . . . . Triggered 2 | . . . . . . . . . . 2 . . . . . . . . . . . . . . . . . . Machines | -11 -10 -10 -10 -9 -8 -7 -7 -7 -7 -6 -6 -6 -6 -5 -5 -5 -5 -5 -4 -4 -4 -4 -4 -4 -4 -3 -2 -1 ---------- Run | Yrd Mat Min Exi Min Mat Fac Was Fac Sto Fac Low Low Zio Pro Fac Upp Upp Zhi Pro Fac Ext Cet Arc Hub Gar Res Res Acc Machines Disabled 49 | . . . . . 2 11 . 6 1 2 . . . . 14 . . . . 3 3 . 4 2 . . 1 . Max in Single Turn 10 | . . . . . 1 10 . 4 1 1 . . . . 4 . . . . 1 1 . 2 1 . . 1 . Garrison Access 5 | . . . . . 1 2 . . . 2 . . . . . . . . . . . . . . . . . . Network Hub 2 | . . . . . . . . . . . . . . . . . . . . . . . . 2 . . . . Machines Repaired . | . . . . . . . . . . . . . . . . . . . . . . . . . . . . . Machines Dismantled 2 | . . . . . . . . . . . . . . . . . . . . . . . . 2 . . . . Machines Sabotaged . | . . . . . . . . . . . . . . . . . . . . . . . . . . . . . Overloaded Fab Kills . | . . . . . . . . . . . . . . . . . . . . . . . . . . . . . Hacking | -11 -10 -10 -10 -9 -8 -7 -7 -7 -7 -6 -6 -6 -6 -5 -5 -5 -5 -5 -4 -4 -4 -4 -4 -4 -4 -3 -2 -1 --------- Run | Yrd Mat Min Exi Min Mat Fac Was Fac Sto Fac Low Low Zio Pro Fac Upp Upp Zhi Pro Fac Ext Cet Arc Hub Gar Res Res Acc Machines Accessed 89 | . 5 . 1 . 8 15 . 9 6 21 . 1 . . 5 . 1 3 . 3 6 2 . 2 . . . 1 Terminals 61 | . 4 . . . 6 11 . 6 5 12 . . . . 4 . 1 . . 2 6 2 . 1 . . . 1 Fabricators 12 | . . . . . . 2 . 3 . 5 . . . . 1 . . . . 1 . . . . . . . . Repair Stations . | . . . . . . . . . . . . . . . . . . . . . . . . . . . . . Recycling Units 1 | . 1 . . . . . . . . . . . . . . . . . . . . . . . . . . . Scanalyzers 2 | . . . . . 1 . . . . 1 . . . . . . . . . . . . . . . . . . Garrison Access 8 | . . . . . 1 2 . . 1 3 . . . . . . . . . . . . . 1 . . . . Total Hacks 197 | . 6 . 1 . 18 38 . 20 10 49 . 1 . . 10 . 2 13 . 8 11 5 . 3 . . . 2 Successful 104 | . 4 . 1 . 11 18 . 11 4 19 . 1 . . 5 . 2 13 . 2 7 4 . 2 . . . . Failed 92 | . 2 . . . 7 20 . 9 6 30 . . . . 4 . . . . 6 4 1 . 1 . . . 2 Catastrophic 14 | . . . . . 2 3 . . 1 2 . . . . 1 . . . . 1 1 . . 1 . . . 2 Database Lockouts 1 | . . . . . . . . . . . . . . . 1 . . . . . . . . . . . . . Manual 88 | . 6 . 1 . 4 23 . 7 4 28 . . . . 5 . . . . 6 2 1 . 1 . . . . Terminals 127 | . 5 . . . 14 29 . 10 8 28 . . . . 8 . 2 . . 3 11 5 . 2 . . . 2 Fabricators 35 | . . . . . . 6 . 10 . 12 . . . . 2 . . . . 5 . . . . . . . . Repair Stations . | . . . . . . . . . . . . . . . . . . . . . . . . . . . . . Recycling Units 1 | . 1 . . . . . . . . . . . . . . . . . . . . . . . . . . . Scanalyzers 3 | . . . . . 1 . . . . 2 . . . . . . . . . . . . . . . . . . Garrison Access 16 | . . . . . 3 3 . . 2 7 . . . . . . . . . . . . . 1 . . . . Terminal Hacks 56 | . . . 1 . 8 6 . 3 4 4 . 1 . . 2 . 2 13 . . 7 4 . 1 . . . . Record 12 | . . . . . 1 . . . . . . . . . . . 2 5 . . . 3 . 1 . . . . Part Schematic 6 | . . . . . . 2 . . . 2 . . . . 1 . . . . . 1 . . . . . . . Robot Analysis 4 | . . . . . . . . . . . . . . . . . . 4 . . . . . . . . . . Prototype ID Bank 5 | . . . . . 1 . . . . . . . . . . . . 4 . . . . . . . . . . Open Door 7 | . . . . . . . . . 1 . . 1 . . . . . . . . 4 1 . . . . . . Level Access Points 1 | . . . . . . . . . . . . . . . 1 . . . . . . . . . . . . . Branch Access Points 3 | . . . . . 1 . . 1 . 1 . . . . . . . . . . . . . . . . . . Terminal Index 1 | . . . . . . 1 . . . . . . . . . . . . . . . . . . . . . . Unreport Threat 2 | . . . . . . . . . . . . . . . . . . . . . 2 . . . . . . . Locate Traps 3 | . . . . . 2 . . 1 . . . . . . . . . . . . . . . . . . . . Disarm Traps 2 | . . . . . . . . 1 1 . . . . . . . . . . . . . . . . . . . Reprogram Traps 1 | . . . . . . . . . . 1 . . . . . . . . . . . . . . . . . . Transport Status 1 | . . . . . 1 . . . . . . . . . . . . . . . . . . . . . . . Recall Extermination 1 | . . . . . . 1 . . . . . . . . . . . . . . . . . . . . . . Hauler Manifests 1 | . . . . . 1 . . . . . . . . . . . . . . . . . . . . . . . Registered Components 2 | . . . . . . 1 . . 1 . . . . . . . . . . . . . . . . . . . Registered Prototypes 1 | . . . . . . 1 . . . . . . . . . . . . . . . . . . . . . . Zone Layout 2 | . . . . . 1 . . . 1 . . . . . . . . . . . . . . . . . . . Proto ID Catalog 1 | . . . 1 . . . . . . . . . . . . . . . . . . . . . . . . . Fabricator Hacks 19 | . . . . . . 4 . 5 . 6 . . . . 2 . . . . 2 . . . . . . . . Network Status 3 | . . . . . . 1 . 1 . 1 . . . . . . . . . . . . . . . . . . Load Schematic 11 | . . . . . . 2 . 3 . 4 . . . . 1 . . . . 1 . . . . . . . . Build 5 | . . . . . . 1 . 1 . 1 . . . . 1 . . . . 1 . . . . . . . . Repair Station Hacks . | . . . . . . . . . . . . . . . . . . . . . . . . . . . . . Recycling Unit Hacks . | . . . . . . . . . . . . . . . . . . . . . . . . . . . . . Scanalyzer 2 | . . . . . 1 . . . . 1 . . . . . . . . . . . . . . . . . . Retrieve Study 2 | . . . . . 1 . . . . 1 . . . . . . . . . . . . . . . . . . Garrison Access Hacks 6 | . . . . . 1 2 . . . 2 . . . . . . . . . . . . . 1 . . . . Unlock Access 1 | . . . . . . . . . . . . . . . . . . . . . . . . 1 . . . . Seal Access 5 | . . . . . 1 2 . . . 2 . . . . . . . . . . . . . . . . . . Unauthorized Hacks 21 | . 4 . . . 1 6 . 3 . 6 . . . . 1 . . . . . . . . . . . . . Terminals 12 | . 3 . . . 1 4 . 1 . 2 . . . . 1 . . . . . . . . . . . . . Assimilate 4 | . . . . . 1 . . 1 . 1 . . . . 1 . . . . . . . . . . . . . Botnet 5 | . . . . . . 4 . . . 1 . . . . . . . . . . . . . . . . . . Skim 3 | . 3 . . . . . . . . . . . . . . . . . . . . . . . . . . . Fabricators 8 | . . . . . . 2 . 2 . 4 . . . . . . . . . . . . . . . . . . Prioritize 3 | . . . . . . 1 . 1 . 1 . . . . . . . . . . . . . . . . . . Recompile 5 | . . . . . . 1 . 1 . 3 . . . . . . . . . . . . . . . . . . Repair Stations . | . . . . . . . . . . . . . . . . . . . . . . . . . . . . . Recycling Units 1 | . 1 . . . . . . . . . . . . . . . . . . . . . . . . . . . Tunnel 1 | . 1 . . . . . . . . . . . . . . . . . . . . . . . . . . . Scanalyzers . | . . . . . . . . . . . . . . . . . . . . . . . . . . . . . Garrison Access . | . . . . . . . . . . . . . . . . . . . . . . . . . . . . . Data Cores Recovered 1 | . . . . . . 1 . . . . . . . . . . . . . . . . . . . . . . Used . | . . . . . . . . . . . . . . . . . . . . . . . . . . . . . Hacking Detections 57 | . 1 . . . 3 13 . 5 4 17 . . . . 3 . 1 . . 3 3 2 . 1 . . . 1 Full Trace Events 5 | . . . . . . 1 . 1 . 2 . . . . 1 . . . . . . . . . . . . . Feedback Events 1 | . . . . . . . . . . 1 . . . . . . . . . . . . . . . . . . Corruption 1 | . . . . . . . . . . 1 . . . . . . . . . . . . . . . . . . Feedback Blocked . | . . . . . . . . . . . . . . . . . . . . . . . . . . . . . Robot Schematics Acquired . | . . . . . . . . . . . . . . . . . . . . . . . . . . . . . Robots Built . | . . . . . . . . . . . . . . . . . . . . . . . . . . . . . Authchips . | . . . . . . . . . . . . . . . . . . . . . . . . . . . . . Time . | . . . . . . . . . . . . . . . . . . . . . . . . . . . . . Total Robot Build Rating . | . . . . . . . . . . . . . . . . . . . . . . . . . . . . . Part Schematics Acquired 6 | . . . . . . 2 . . . 2 . . . . 1 . . . . . 1 . . . . . . . Parts Built 7 | . . . . . . 2 . 2 . 1 . . . . 1 . . . . 1 . . . . . . . . Authchips 4 | . . . . . . 1 . 1 . 1 . . . . . . . . . 1 . . . . . . . . Time 383 | . . . . . . 31 . 95 . 95 . . . . 95 . . . . 67 . . . . . . . . Total Part Build Rating 34 | . . . . . . 10 . 10 . 5 . . . . 5 . . . . 4 . . . . . . . . Part Studies Acquired 2 | . . . . . 1 . . . . 1 . . . . . . . . . . . . . . . . . . Parts Repaired . | . . . . . . . . . . . . . . . . . . . . . . . . . . . . . Time . | . . . . . . . . . . . . . . . . . . . . . . . . . . . . . Parts Recycled . | . . . . . . . . . . . . . . . . . . . . . . . . . . . . . Recycled Matter . | . . . . . . . . . . . . . . . . . . . . . . . . . . . . . Retrieved Matter . | . . . . . . . . . . . . . . . . . . . . . . . . . . . . . Retrieved Components . | . . . . . . . . . . . . . . . . . . . . . . . . . . . . . Parts Scanalyzed . | . . . . . . . . . . . . . . . . . . . . . . . . . . . . . Part Schematics Acquired . | . . . . . . . . . . . . . . . . . . . . . . . . . . . . . Parts Damaged . | . . . . . . . . . . . . . . . . . . . . . . . . . . . . . Bothacking | -11 -10 -10 -10 -9 -8 -7 -7 -7 -7 -6 -6 -6 -6 -5 -5 -5 -5 -5 -4 -4 -4 -4 -4 -4 -4 -3 -2 -1 ------------ Run | Yrd Mat Min Exi Min Mat Fac Was Fac Sto Fac Low Low Zio Pro Fac Upp Upp Zhi Pro Fac Ext Cet Arc Hub Gar Res Res Acc Used RIF Installer . | . . . . . . . . . . . . . . . . . . . . . . . . . . . . . Robots Hacked . | . . . . . . . . . . . . . . . . . . . . . . . . . . . . . Non-combat . | . . . . . . . . . . . . . . . . . . . . . . . . . . . . . Combat . | . . . . . . . . . . . . . . . . . . . . . . . . . . . . . Robot Hacks Applied . | . . . . . . . . . . . . . . . . . . . . . . . . . . . . . Relay Couplers Released . | . . . . . . . . . . . . . . . . . . . . . . . . . . . . . Fabnet Peak Effective % . | . . . . . . . . . . . . . . . . . . . . . . . . . . . . . Robots Rewired 3 | . . . . . . . . . . . . . . . . . . . . . 3 . . . . . . . Allies Hacked . | . . . . . . . . . . . . . . . . . . . . . . . . . . . . . Hacks Repelled . | . . . . . . . . . . . . . . . . . . . . . . . . . . . . . Allies | -11 -10 -10 -10 -9 -8 -7 -7 -7 -7 -6 -6 -6 -6 -5 -5 -5 -5 -5 -4 -4 -4 -4 -4 -4 -4 -3 -2 -1 -------- Run | Yrd Mat Min Exi Min Mat Fac Was Fac Sto Fac Low Low Zio Pro Fac Upp Upp Zhi Pro Fac Ext Cet Arc Hub Gar Res Res Acc Total Allies 28 | . . . . . 1 . 1 1 10 1 . . . . 1 . . . . . 8 5 . . . . . . Largest Group 10 | . . . . . 1 . 1 1 10 1 . . . . 1 . . . . . 6 10 10 9 . . . . Highest-Rated Group 813 | . . . . . 10 . 31 10 173 10 . . . . 10 . . . . . 362 813 813 654 . . . . Highest-Rated Ally 159 | . . . . . 10 . 31 10 29 10 . . . . 10 . . . . . 159 159 159 96 . . . . Total Orders 1 | . . . . . . . . . . . . . . . . . . . . . . . . . . . 1 . EXPLORE 1 | . . . . . . . . . . . . . . . . . . . . . . . . . . . 1 . Ally Attacks 185 | . . . . . . . 3 . 51 . . . . . . . . . . . 43 12 23 53 . . . . Total Damage 4915 | . . . . . . . 64 . 695 . . . . . . . . . . . 1201 348 983 1624 . . . . Kills 21 | . . . . . . . . . 6 . . . . . . . . . . . 6 1 4 4 . . . . Allies Corrupted 7 | . . . . . . . . . . . . . . . . . . . . . . . . 7 . . . . Allies Melted . | . . . . . . . . . . . . . . . . . . . . . . . . . . . . . Intel | -11 -10 -10 -10 -9 -8 -7 -7 -7 -7 -6 -6 -6 -6 -5 -5 -5 -5 -5 -4 -4 -4 -4 -4 -4 -4 -3 -2 -1 ------- Run | Yrd Mat Min Exi Min Mat Fac Was Fac Sto Fac Low Low Zio Pro Fac Upp Upp Zhi Pro Fac Ext Cet Arc Hub Gar Res Res Acc Active Infowar (turns) 10195 | . . . . . . 921 111 684 256 1461 148 298 576 170 785 298 289 105 466 689 1186 470 104 54 . 493 320 311 Optics 6189 | . . . . . . . . . . . . . 451 170 785 298 289 105 466 689 1186 470 104 52 . 493 320 311 IFF 295 | . . . . . . . . . . . . . . . . . . . . . . . . . . 295 . . Structural 4460 | . . . . . . 921 111 684 256 1461 148 298 509 72 . . . . . . . . . . . . . . Seismic 156 | . . . . . . . . . . . . . . . . . . . . . . . . . . 156 . . Jamming 2359 | . . . . . . . . . . . . . . . 668 298 289 69 . 45 988 . . 2 . . . . Robot Analysis Total 4 | . . . . . . . . . . . . . . . . . . 4 . . . . . . . . . . Derelict Logs Recovered 8 | . . 1 . . . . . . . . 1 . 1 1 . 2 1 . 1 . . . . . . . . . Drone Launches 2 | . . . . . . . . . . . . . . . . . . . . . . . . . . . 2 . Drone Recoveries 1 | . . . . . . . . . . . . . . . . . . . . . . . . . . . 1 . Exploration | -11 -10 -10 -10 -9 -8 -7 -7 -7 -7 -6 -6 -6 -6 -5 -5 -5 -5 -5 -4 -4 -4 -4 -4 -4 -4 -3 -2 -1 ------------- Run | Yrd Mat Min Exi Min Mat Fac Was Fac Sto Fac Low Low Zio Pro Fac Upp Upp Zhi Pro Fac Ext Cet Arc Hub Gar Res Res Acc Turns Passed 17807 | 10 1506 687 773 461 3554 934 111 812 256 1461 148 298 579 170 785 298 289 105 466 689 1186 470 104 296 85 523 320 431 Spaces Moved 18222 | 3 460 197 242 134 1434 1482 202 1256 327 2363 263 602 1133 348 1060 518 470 166 660 906 1421 389 120 402 114 734 415 401 Core 278 | . . . . . . . . . . . . . . . . . . . . . . . . . 46 21 . 211 Treads 2470 | 3 460 197 242 134 1434 . . . . . . . . . . . . . . . . . . . . . . . Legs . | . . . . . . . . . . . . . . . . . . . . . . . . . . . . . Wheels . | . . . . . . . . . . . . . . . . . . . . . . . . . . . . . Hover 12207 | . . . . . . . . . . 2363 263 602 1133 348 1060 518 470 166 660 906 1421 389 120 402 68 713 415 190 Flight 3267 | . . . . . . 1482 202 1256 327 . . . . . . . . . . . . . . . . . . . Fastest Speed 30 | 160 160 320 320 320 200 50 50 50 50 47 47 47 47 47 30 35 53 53 47 47 47 50 50 50 50 50 42 50 Average Speed 77 | 160 269 320 320 320 218 50 50 50 50 49 47 47 47 47 46 48 53 53 48 50 53 50 50 51 55 53 50 55 Slowest Speed 320 | 160 320 320 320 320 240 50 50 50 50 54 47 47 47 47 47 53 53 53 54 54 116 50 50 110 69 110 111 61 Overloaded Moves 42 | . . . . . . . . . . . . . . . 14 28 . . . . . . . . . . . . Propulsion Burnouts . | . . . . . . . . . . . . . . . . . . . . . . . . . . . . . Robots Hopped 22 | . . . . . . 6 . 7 9 . . . . . . . . . . . . . . . . . . . Potential Cave-ins 2 | . . . . . . . . . . . . . . . . 2 . . . . . . . . . . . . Cave-ins Triggered . | . . . . . . . . . . . . . . . . . . . . . . . . . . . . . Exploration Rate (%) 53 | 2 82 43 59 59 61 44 76 33 63 45 55 74 86 65 26 70 74 64 63 18 97 91 91 30 33 24 18 13 Regions Visited 28 Branch Regions 16 Pre-discovered Areas 6 | . 1 . . . . . . . . . . . 1 . . . . 3 1 . . . . . . . . . Known Exits Taken 9 | . . . . . . . . 1 . 1 1 1 1 1 . . . . 1 1 . . . 1 . . . . Unknown Exits Taken 16 | 1 1 1 1 1 1 . . . 1 . . . . . 1 1 1 1 . . 1 1 1 . . 1 1 . Scrap Searched 16 | . . 1 . 1 . . . . . . 1 4 1 1 . 1 2 . 4 . . . . . . . . . Spaces Dug 63 | . . . . . . 15 . 13 2 13 . . . . 4 . . . . 5 . . . 1 . 3 4 3 Terrain Destroyed 1417 | . . . . . . 71 15 79 2 41 69 . . . 130 169 46 . 112 106 314 28 27 1 . 29 123 55 Melee 59 | . . . . . . 15 . 13 2 13 . . . . 4 . . . . 5 . . . 1 . 3 3 . Projectile 6 | . . . . . . . . . . . . . . . . . . . . . 1 . . . . . 1 4 AOE 1352 | . . . . . . 56 15 66 . 28 69 . . . 126 169 46 . 112 101 313 28 27 . . 26 119 51 Terrain Rammed . | . . . . . . . . . . . . . . . . . . . . . . . . . . . . . Walls Destroyed . | . . . . . . . . . . . . . . . . . . . . . . . . . . . . . Machines Disabled . | . . . . . . . . . . . . . . . . . . . . . . . . . . . . . Actions | -11 -10 -10 -10 -9 -8 -7 -7 -7 -7 -6 -6 -6 -6 -5 -5 -5 -5 -5 -4 -4 -4 -4 -4 -4 -4 -3 -2 -1 --------- Run | Yrd Mat Min Exi Min Mat Fac Was Fac Sto Fac Low Low Zio Pro Fac Upp Upp Zhi Pro Fac Ext Cet Arc Hub Gar Res Res Acc Total 21246 | 9 632 223 242 146 1724 1630 212 1402 405 2583 280 616 1179 351 1299 547 490 178 783 1111 1839 664 162 474 134 842 496 593 Wait 2070 | . 83 5 . 1 105 71 7 116 83 153 12 14 32 3 180 9 7 . 98 169 340 253 37 34 2 53 40 163 Move 18152 | 2 459 196 241 133 1433 1470 201 1241 309 2362 262 601 1132 347 1059 517 469 165 659 905 1420 388 119 402 113 733 414 400 Hop 21 | . . . . . . 6 . 7 8 . . . . . . . . . . . . . . . . . . . Pick Up 152 | . 23 . 1 . 39 12 2 7 1 12 1 1 2 . 9 1 2 3 3 7 6 5 1 1 1 9 3 . Fast Attach 41 | . 3 . . . 3 . . . . . . . 5 . . . . 3 . 2 . 1 . 3 . 15 6 . Attach 76 | . 2 5 . 1 6 9 . 3 . 10 . . 1 . 6 2 1 . . 6 3 . 1 3 3 6 3 5 Detach 13 | . . . . . 2 2 . . . . . . . . . 1 . . . . 2 . . 3 . 1 . 2 Swap 84 | 3 2 . . . 14 6 . 4 . 8 . . . . 7 2 . 1 5 4 10 3 1 10 . . 1 3 Drop 120 | 4 10 . . . 29 19 2 6 1 5 . . 7 . 3 . . 4 3 . 6 5 . 5 . 10 1 . Fire 307 | . 50 15 . 11 84 6 . 5 . . 5 . . . 26 15 4 . 10 7 24 9 3 2 . 3 17 11 Melee 130 | . . . . . . 20 . 13 3 33 . . . 1 9 . 7 2 5 11 7 . . 3 1 11 4 . Ram 6 | . . . . . . . . . . . . . . . . . . . . . . . . 1 . 1 . 4 Kick . | . . . . . . . . . . . . . . . . . . . . . . . . . . . . . Crush 11 | . . 2 . . 9 . . . . . . . . . . . . . . . . . . . . . . . Escape Stasis 43 | . . . . . . 9 . . . . . . . . . . . . . . 13 . . . 14 . 7 . Rewire 8 | . . . . . . . . . . . . . . . . . . . . . 8 . . . . . . . Trap . | . . . . . . . . . . . . . . . . . . . . . . . . . . . . . Miscellaneous 12 | . . . . . . . . . . . . . . . . . . . . . . . . 7 . . . 5 Route ------- -11/Scrapyard -10/Materials (discovered 3 exits: [*Mat] / [*Min x2]) -10/Mines (discovered 3 exits: [*Mat x2] / *Exi) -10/Exiles -9/Mines -8/Materials -7/Factory (discovered 2 exits: *Fac / Sto) -7/Waste -7/Factory (discovered 5 exits: *Fac / *Sto x2 / Low x2) -7/Storage -6/Factory (discovered 4 exits: *Fac x2 / *Low x2) -6/Lower Caves -6/Lower Caves -6/Zion -5/Proximity Caves -5/Factory (discovered 6 exits: *Fac x4 / [*Upp x2]) -5/Upper Caves -5/Upper Caves -5/Zhirov -4/Proximity Caves -4/Factory (discovered 4 exits: [*Res x2] / *Ext x2) -4/Extension (discovered 2 exits: [*Res] / *Cet) -4/Cetus (discovered 2 exits: [*Res] / [*Arc]) -4/Archives (discovered 3 exits: [*Res] / *Hub x2) -4/Hub_04(d) -4/Garrison -3/Research (discovered 2 exits: [*Res x2]) -2/Research -1/Access To Epsilon Eridani History --------- Turn | Location | Event 8 | -11/Scrapyard | Discovered new exit (range 3) 11 | -11/Scrapyard | Entered Materials 204 | -10/Materials | Discovered new exit (range 16) 311 | -10/Materials | Build established: Mutant 312 | -10/Materials | Discovered new exit (range 16) 722 | -10/Materials | Discovered new exit (range 15) 1517 | -10/Materials | Entered Mines 1518 | -10/Mines | Assembled infested the area 1523 | -10/Mines | Assisted by a Guerilla fighting off Assembled 1596 | -10/Mines | Core integrity fell below 50% 1620 | -10/Mines | Core integrity fell below 20% 1656 | -10/Mines | Lost 5 parts (1p2n2w) 1881 | -10/Mines | Discovered new exit (range 9) 1993 | -10/Mines | Discovered new exit (range 9) 2191 | -10/Mines | Deemed a non-threat by the Exiles lab entrance 2191 | -10/Mines | Discovered new exit (range 5) 2204 | -10/Mines | Entered Exiles 2281 | -10/Exiles | Met 8R-AWN 2339 | -10/Exiles | Met EX-HEX 2422 | -10/Exiles | Met EX-BIN 2467 | -10/Exiles | Aligned with FarCom system 2470 | -10/Exiles | Given EX-Vault access code 2544 | -10/Exiles | Opened EX-Vault 2672 | -10/Exiles | Found Flying Fortress v7 2743 | -10/Exiles | Warned to stay clear of 0b10 Research branches 2839 | -10/Exiles | Met EX-DEC 2951 | -10/Exiles | Discovered new exit (range 10) 2977 | -10/Exiles | Left Exiles lab with Flying Fortress v7 2977 | -10/Exiles | Entered Mines 3279 | -9/Mines | YI-UF0 nonchalantly dropped a Grenade Launcher on the ground 3416 | -9/Mines | Discovered new exit (range 8) 3438 | -9/Mines | Entered Materials 3438 | -8/Materials | Evolved 4 slots: Propulsion x2, Utility x2 4529 | -8/Materials | Build established: Scavenger-Mutant 6986 | -8/Materials | Discovered new exit (range 3) 6992 | -8/Materials | Entered Factory 6992 | -7/Factory | Evolved 2 slots: Utility x2 6993 | -7/Factory | Identified exit to Storage 7082 | -7/Factory | Discovered new exit (range 8) 7293 | -7/Factory | Build established: Hacker-Mutant 7887 | -7/Factory | Fabricated Cmb. Airjet (x2) 7926 | -7/Factory | Manually triggered Chute Trap 7926 | -7/Factory | Sucked down chute 7926 | -7/Factory | Entered Waste 7927 | -7/Waste | Met a frightened Derelict 7931 | -7/Waste | Spotted C-40 Crusher 7932 | -7/Waste | Spotted C-40 Crusher 7937 | -7/Waste | Spotted C-40 Crusher 7941 | -7/Waste | EMP discharged 7965 | -7/Waste | Destroyed C-40 Crusher 7972 | -7/Waste | Spotted C-40 Crusher 7997 | -7/Waste | Spotted C-40 Crusher 8014 | -7/Waste | Spotted C-40 Crusher 8033 | -7/Waste | Discovered new exit (range 10) 8037 | -7/Waste | Entered Factory 8330 | -7/Factory | Fabricated Cmb. Airjet (x2) 8708 | -7/Factory | Discovered exit to Storage (range 7) 8728 | -7/Factory | Discovered new exit (range 15) 8766 | -7/Factory | Identified exit to Lower Caves 8849 | -7/Factory | Entered Storage 8929 | -7/Storage | Assisted by bots powering up and referring to "LRC-V3" 8951 | -7/Storage | Garrison activated, responded to threat 9006 | -7/Storage | Lost 10 allies 9098 | -7/Storage | Discovered new exit (range 16) 9105 | -7/Storage | Entered Factory 9105 | -6/Factory | Evolved 2 slots: Propulsion x1, Utility x1 9464 | -6/Factory | Discovered new exit (range 12) 9745 | -6/Factory | Discovered new exit (range 15) 10051 | -6/Factory | Discovered new exit (range 13) 10173 | -6/Factory | Fabricated Lrn. Missile Launcher? 10383 | -6/Factory | Identified exit to Factory 10505 | -6/Factory | Search patrols dispatched 10526 | -6/Factory | Identified exit to Lower Caves 10566 | -6/Factory | Entered Lower Caves 10700 | -6/Lower Caves | Learned Factory stockpile data 10708 | -6/Lower Caves | Discovered new exit (range 12) 10713 | -6/Lower Caves | Identified exit to Lower Caves 10714 | -6/Lower Caves | Entered another Lower Caves area 10737 | -6/Lower Caves | Encountered a Warlord checkpoint 10826 | -6/Lower Caves | Attracted the attention of an 0b10 outpost 11009 | -6/Lower Caves | Discovered new exit (range 5) 11012 | -6/Lower Caves | Identified exit to Zion 11012 | -6/Lower Caves | Entered Zion 11047 | -6/Zion | System corruption cleaned by Quarantine Array 11063 | -6/Zion | Discovered new exit (range 11) 11067 | -6/Zion | Identified exit to Proximity Caves 11134 | -6/Zion | Found Prototype Processor 11134 | -6/Zion | Identified Exp. Terrain Scan Processor 11137 | -6/Zion | Found Prototype Processor 11137 | -6/Zion | Identified Exp. Melee Analysis Suite 11142 | -6/Zion | Found Prototype Processor 11142 | -6/Zion | Identified Spectral Analyzer 11145 | -6/Zion | Found Prototype Processor 11145 | -6/Zion | Identified Exp. Target Analyzer 11206 | -6/Zion | Visited the Megawrench Repair Shop 11207 | -6/Zion | Megawrench repaired 10 parts 11302 | -6/Zion | Learned location of Warlord (-4) 11377 | -6/Zion | Found CR-A16's Pointy Stick 11410 | -6/Zion | Rebuked by Imprinter 11591 | -6/Zion | Entered Proximity Caves 11594 | -5/Proximity Caves | Spotter reported a threat 11600 | -5/Proximity Caves | Attracted the attention of an 0b10 checkpoint 11604 | -5/Proximity Caves | Spotted B-75 Beast 11761 | -5/Proximity Caves | Entered Factory 11761 | -5/Factory | Evolved 2 slots: Power x1, Propulsion x1 11820 | -5/Factory | Central database locked down 11885 | -5/Factory | Discovered new exit (range 17) 11896 | -5/Factory | Discovered new exit (range 22) 12021 | -5/Factory | Identified exit to Factory 12321 | -5/Factory | Discovered new exit (range 17) 12361 | -5/Factory | First assault squad dispatched 12445 | -5/Factory | Fabricated Lrn. Missile Launcher? 12546 | -5/Factory | Entered Upper Caves 12565 | -5/Upper Caves | Found DCF Scrap (14 items) 12612 | -5/Upper Caves | Encountered a Warlord checkpoint 12632 | -5/Upper Caves | Ambushed by wild Derelicts 12678 | -5/Upper Caves | Attracted the attention of an 0b10 checkpoint 12681 | -5/Upper Caves | Learned location of 1 exit from Factory 12747 | -5/Upper Caves | Spotted B-75 Beast 12841 | -5/Upper Caves | Learned Factory stockpile data 12843 | -5/Upper Caves | Discovered new exit (range 3) 12844 | -5/Upper Caves | Entered another Upper Caves area 12879 | -5/Upper Caves | Build established: Machinist-Mutant 13101 | -5/Upper Caves | Discovered new exit (range 8) 13114 | -5/Upper Caves | Learned Factory terminal intel 13133 | -5/Upper Caves | Entered Zhirov 13133 | -5/Zhirov | Discovered new exit (range 3) 13143 | -5/Zhirov | Met Zhirov 13154 | -5/Zhirov | Learned location of Quarantine (-2) 13154 | -5/Zhirov | Learned location of Testing (-3) 13154 | -5/Zhirov | Learned location of Command (-1) 13163 | -5/Zhirov | Zhirov requested help retrieving the SGEMP Prototype 13171 | -5/Zhirov | Found Alien Artifact 13171 | -5/Zhirov | Identified Integrated Reactor 13171 | -5/Zhirov | Installed Integrated Reactor, increased core energy generation (+10) 13178 | -5/Zhirov | Found Alien Artifact 13238 | -5/Zhirov | Entered Proximity Caves 13385 | -4/Proximity Caves | Spotted B-86 Titan 13638 | -4/Proximity Caves | Revealed the true nature of CR-A16's Pointy Stick 13650 | -4/Proximity Caves | Build established: Hacker-Mutant 13665 | -4/Proximity Caves | Destroyed B-86 Titan 13695 | -4/Proximity Caves | Discovered exit to Factory (range 8) 13704 | -4/Proximity Caves | Entered Factory 13704 | -4/Factory | Evolved 2 slots: Utility x1, Weapon x1 13705 | -4/Factory | Identified exit to Extension 13708 | -4/Factory | Loaded intel: 28 terminal locations 13760 | -4/Factory | Discovered new exit (range 12) 13952 | -4/Factory | Lost 3 parts (1p1n1w) 14025 | -4/Factory | Found Launcher Loader 14108 | -4/Factory | Watched by a mysterious "MATRIX" hacker 14175 | -4/Factory | Fabricated Cld. Airjet? 14270 | -4/Factory | Discovered new exit (range 12) 14393 | -4/Factory | Entered Extension 15055 | -4/Extension | Spotted B-86 Titan 15094 | -4/Extension | Spotted B-86 Titan 15099 | -4/Extension | Destroyed B-86 Titan 15107 | -4/Extension | Destroyed B-86 Titan 15185 | -4/Extension | Discovered new exit (range 24) 15186 | -4/Extension | Discovered new exit (range 23) 15264 | -4/Extension | Rescued a captive Derelict 15265 | -4/Extension | Rescued a captive Derelict 15323 | -4/Extension | Rescued A7 15331 | -4/Extension | Rescued a captive Derelict 15380 | -4/Extension | Found Powered Armor 15418 | -4/Extension | Rescued a captive Derelict 15579 | -4/Extension | Entered Cetus 15579 | -4/Cetus | Accompanied by 5 allies (A7) 15584 | -4/Cetus | Acquired a Cetus Manufacturing Module code from A7 15585 | -4/Cetus | Spotted Cetus Guard 15585 | -4/Cetus | Spotted Cetus Guard 15585 | -4/Cetus | Spotted Cetus Guard 15585 | -4/Cetus | Spotted Cetus Guard 15592 | -4/Cetus | Destroyed Cetus Guard 15595 | -4/Cetus | Destroyed Cetus Guard 15596 | -4/Cetus | Destroyed Cetus Guard 15598 | -4/Cetus | Allies destroyed Cetus Guard 15646 | -4/Cetus | Started Cetus Manufacturing Module 15671 | -4/Cetus | Manufactured an Enhanced Grunt 15677 | -4/Cetus | Escorted A7 to Cetus Mainframe 15696 | -4/Cetus | Manufactured an Enhanced Grunt 15721 | -4/Cetus | Manufactured an Enhanced Grunt 15721 | -4/Cetus | Discovered new exit (range 24) 15746 | -4/Cetus | Manufactured an Enhanced Grunt 15771 | -4/Cetus | Manufactured an Enhanced Grunt 15880 | -4/Cetus | Spotted Cetus Guard 15880 | -4/Cetus | Spotted Cetus Guard 15880 | -4/Cetus | Spotted Cetus Guard 15880 | -4/Cetus | Spotted Cetus Guard 15881 | -4/Cetus | Discovered new exit (range 23) 15886 | -4/Cetus | Destroyed Cetus Guard 15887 | -4/Cetus | Destroyed Cetus Guard 15888 | -4/Cetus | Destroyed Cetus Guard 15889 | -4/Cetus | Destroyed Cetus Guard 15895 | -4/Cetus | Met Revision 17 16049 | -4/Cetus | Entered Archives 16049 | -4/Archives | Accompanied by 10 allies (A7) 16052 | -4/Archives | Build established: Commander-Mutant 16054 | -4/Archives | Received a hacking code to weaken MAIN.C 16082 | -4/Archives | Discovered new exit (range 14) 16092 | -4/Archives | Discovered new exit (range 16) 16099 | -4/Archives | Discovered new exit (range 14) 16153 | -4/Archives | Entered Hub_04(d) 16153 | -4/Hub_04(d) | Accompanied by 9 allies 16255 | -4/Hub_04(d) | Network Hub disabled 16282 | -4/Hub_04(d) | Network Hub disabled 16287 | -4/Hub_04(d) | Spotted Lightning 16293 | -4/Hub_04(d) | Spotted Lightning 16293 | -4/Hub_04(d) | Spotted Lightning 16310 | -4/Hub_04(d) | Garrison activated, responded to threat 16339 | -4/Hub_04(d) | Found Prototype Energy Cannon 16340 | -4/Hub_04(d) | Identified EMDS 16357 | -4/Hub_04(d) | Spotted Lightning 16361 | -4/Hub_04(d) | Spotted Lightning 16372 | -4/Hub_04(d) | Lost 7 allies 16406 | -4/Hub_04(d) | Spotted Lightning 16441 | -4/Hub_04(d) | Lost 3 parts (1n1u1w) 16449 | -4/Hub_04(d) | Identified exit to Garrison 16449 | -4/Hub_04(d) | Entered Garrison 16477 | -4/Garrison | Spotted B-86 Titan 16481 | -4/Garrison | Triggered checkpoint 16486 | -4/Garrison | Destroyed B-86 Titan 16488 | -4/Garrison | Triggered checkpoint 16495 | -4/Garrison | Triggered checkpoint 16512 | -4/Garrison | Core integrity fell below 50% 16512 | -4/Garrison | Released all parts (8) 16530 | -4/Garrison | Discovered new exit (range 10) 16534 | -4/Garrison | Entered Research 16534 | -3/Research | Evolved 2 slots: Utility x1, Weapon x1 16542 | -3/Research | Lost 5 parts (4n1u) 16561 | -3/Research | Found Faulty Spectral Analyzer 16563 | -3/Research | Found Spectral Analyzer 16734 | -3/Research | Revision forces began assault on 0b10 16753 | -3/Research | Discovered new exit (range 3) 16769 | -3/Research | Found Gamma Bomb Array 16838 | -3/Research | Met up with Revision 17++ 16934 | -3/Research | Found Prototype Launcher 16934 | -3/Research | Identified Mni. Smartbomb Launcher 17036 | -3/Research | Discovered new exit (range 12) 17044 | -3/Research | Found Prototype Launcher 17044 | -3/Research | Identified Adv. Micro-nuke Launcher 17057 | -3/Research | Entered another Research area 17057 | -2/Research | Evolved 2 slots: Propulsion x1, Utility x1 17236 | -2/Research | Spotted B-90 Cyclops 17319 | -2/Research | Lost 7 parts (1p3n1u2w) 17343 | -2/Research | Discovered new exit (range 23) 17369 | -2/Research | Found Fusion Bomb Launcher 17377 | -2/Research | Entered Access 17377 | -1/Access | Evolved 2 slots: Propulsion x1, Utility x1 17548 | -1/Access | Build established: Mutant 17688 | -1/Access | Released all parts (6) 17706 | -1/Access | Core integrity fell below 50% 17803 | -1/Access | Door terminal overloaded 17805 | -1/Access | Discovered new exit (range 7) 17808 | *** | Escaped! Last Messages --------------- 17697_ Destabilizing: Core damaged (-32). 17703_ Penetrated by Slug. 17705_ Slammed into R-10 Processor. 17737_ P-80 Master resets A-15 Conveyor, system corruption cleaned. 17742_ System corrupted: Matter fused (-6). 17771_ AO 4TNKAN0OD,4CPS:PJGHIW Q7LIR9IO>< 17775_ P-80 Master resets A-15 Conveyor, system corruption cleaned. 17789_ Connecting with Terminal... 17789_ Current location identified: Access 17791_ Dismantling Sealed Barrier with Imp. Plasma Cutter. 17801_ Imp. Plasma Cutter destroyed. 17803_ System overload, Sealed Barrier opened. 17803_ Terminal disabled. 17804_ System corrupted: Substantial component data lost. 17805_ The Access Shell folds into the floor. 17805_ EXIT=FOUND Map ----- +----------------------------------------------------+ | ??????????????????????????????# #???# #????????? | | ????#+#???????????????????????# #???# #????????? | | ????# #???????????????????????# #???# #????????? | | ????# #??????#+##+#???????????# #???# #????????? | | ????# #??????# #########+### ##### #????????? | | ????# ######## #????????? | | ????# #????????? | | ? ?# ###########+#############+###### #????????? | | ?# #???????? ????????# ????# +????????? | | ""??# #?????? ??????# ????# #????????? | | ""??# #?????# #?????# ??# #????????? | | ???# #?????# #?????# " # #????????? | | ??# #?????# #?????# """ + #????????? | | # #?????# #?????#[ """ # #????????? | | + #?????# #?????# " ?# #????????? | | ##### #?????# * #?????# ?# #????????? | | ##### #?????###########?????# ! ??# #????????? | | #?????????????????????#####????# #????????? | | #######??????????????????????????????# #????????? | | #????????????????????????????###?????# #????????? | | #???????????????????########## #######p #????????? | | #???????????????????" p #????????? | | #?????????????BB????" #????????? | | #?????????????BB????" #????????? | | #???????????????????" #????????? | | #???????????????????" "@ #????????? | | #???????????????????" "" #????????? | | #???????????????????" #????????? | | #?????????????BB????" #????????? | | #?????????????BB????" " " " " #????????? | | #???????????????????" """T""" #????????? | | #???????????????????########## ####### #????????? | | ?????????????????????????????###?????? #????????? | | ?????????????????????????????????????? #????????? | | ?????????????????????????????????????? #????????? | | ?????????????????????????????????????? #????????? | | ?????????????????????????????????????? ????????? | | ?????????????????????????????????????? ????????? | | ?????????????????????????g???????????? #????????? | | ??????????????????????????????????????? ?????????? | | ?????????????????????????????????????????????????? | | ?????????????????????????????????????????????????? | | ?????????????????????????????????????????????????? | | ?????????????????????????????????????????????????? | | ?????????????????????????????????????????????????? | | ?????????????????????????????????????????????????? | | ?????????????????????????????????????????????????? | | ?????????????????????????????????????????????????? | | ?????????????????????????????????????????????????? | | ?????????????????????????????????????????????????? | +----------------------------------------------------+ Best States ------------- Heat Dissipation 53 Energy Generation 43 Energy Capacity 1100 Matter Stores 600 Matter Capacity 600 Sight Range 24 Terrain Scan Density 10 Jamming Range 12 Corruption Block 20 Armor Coverage 450 Propulsion Shielding 90 Evasion (%) 68 Launcher Accuracy 20 Core Analysis 6 Recoil Reduction 4 Energy Filtering 50 Offensive Hacking 34 Authchip Count 2 Item Schematics ----------------- Cmb. Airjet | -7/Factory | Hacked Cld. Airjet | -7/Factory | Hacked Weapon Mount | -6/Factory | Hacked Lrn. Missile Launcher | -6/Factory | Hacked Launcher Guidance Computer | -5/Factory | Hacked Matter Filter | -4/Extension | Hacked Robot Schematics ------------------ None Fabricated ------------ Cmb. Airjet | x2 | -7/Factory | Authchip Cmb. Airjet | x2 | -7/Factory | Authchip Lrn. Missile Launcher | x1 | -6/Factory | Authchip Lrn. Missile Launcher | x1 | -5/Factory Cld. Airjet | x1 | -4/Factory | Authchip Repaired ---------- Nothing Studied --------- Lgt. Treads | -8/Materials | Hacked Cmb. Airjet | -6/Factory | Hacked Alien Tech Used ----------------- Integrated Reactor Achievements -------------- Better Safe Than Exploded Fancy Inventory Main Advantage No Room For Error Prison Break Project G-00 Revising The Future Revolutionary Research Streaker The Robot, The Myth, The Legend Challenges ------------ None Game ------ Seed SubatomicTeslaTearclaws Manual? 0 Play Time 02:45:49 Cumulative 68.2 hours Start 2026.07.26 @ 16:43:45 End 2026.07.26 @ 19:35:47 Sessions 1 Manual Loads 0 Difficulty Rogue Special Mode None Game No. 283 Rogue 238 Adventurer 45 Explorer 0 Win Type 0 Total 3 Types 3/0/0/0/0/0/0/0/0/0 Lore% 67 Gallery% 47 Achievement% 46 Wizard Run 0 Options --------- Layout 1 ASCII 0 Keyboard 0 Movement Numpad Keybinds 0 Fullscreen 1 Font 24/Smallcaps Map View 50x35 Zoom Use 0% Tactical HUD 1 Map Filters NONE Filters NONE Steam 1 RUN: 2bdb2a60-887b-4be7-8fdd-4ca14962b554